{"text_format":"1","workbook":"xlsx","n_sheets":8,"sheets":["Home Page","    List by ST Number   ","1000 Series","4000 Series","Operators","Concealed","Fire  Life Safety","High Security"],"not_rendered":{"charts":0,"images":9,"macros":1,"external_links":0,"defined_names":2,"comments":0,"pivot_tables":0},"unopened":[],"bounds":{"document_bytes":16777216,"sheet_cells":100000,"rows_first":2000,"rows_last":500,"rows_between":2000,"halvings":0,"cell_chars":16384,"cell_head_chars":4096},"cells_cut":0,"cells_raw":0,"read":"whole","date_system":"1900"}

{"sheet":"Home Page","index":0,"n_rows":39,"n_cols":10,"rows_kept":39,"cut":false,"hidden":false,"merged":[[14,5,14,7],[14,9,14,13],[37,3,37,14],[38,3,38,14]]}
[]
[]
[]
[]
[]
[]
[]
[]
[]
[]
[]
[]
[]
[]
[null,null,null,null,null,"Top 100 ",null,null,null,"   Special Templates "]
[]
[]
[]
[]
[]
[]
[]
[]
[]
[]
[]
[]
[]
[]
[]
[]
[]
[]
[]
[]
[]
[]
[null,null,null,"If you are not able to find your ST Number in this list or if you require addition information "]
[null,null,null,"please contact Allegion at canada.techservices@allegion.com or at 800-900-4734"]

{"sheet":"    List by ST Number   ","index":1,"n_rows":105,"n_cols":13,"rows_kept":105,"cut":false,"hidden":false,"merged":[[1,2,1,12]]}
[]
[null,null,"LCN Special Templates Top 100 List"]
[]
[null,null,null,null,null,"2022 List ","Up Charge","2024 List","2023 List",null,null,"Template","Standard"]
[null,null,"  ST Number",null,"Product ","Up-Charge","Copy from","Up-Charge","Up-Charge","     Application Type","      Description","Available","Product"]
[]
[null,1,"ST-","0561",2010,0,0,0,0,"Relocates closer in a hollow metal frame","This makes room for drywall in a hollow metal frame","Yes","Yes"]
[null,2,"ST-","0907",3130,0,0,0,0,"Offset pivot installation","See ST for a list of compatible pivots","Yes","Yes"]
[null,3,"ST-","0922",3130,0,0,0,0,"Center pivot installation","See ST for a list of compatible pivots","Yes","Yes"]
[null,4,"ST-",3478,3130,54,59,56,59,"Installation in the frame instead of in the door","Uses a special arm","Yes","No"]
[null,5,"ST-",1358,"4040XP-EDA",0,0,0,0,"With a -18 mounting plate instead of a -18PA plate ","Requires 4040XP-18 mounting  plate as a separate item","Yes","Yes"]
[null,6,"ST-",1384,"4110-EDA",0,0,0,0,"For installation with a coordinator","Requires a mounting bracket by others ( Ives )","Yes","Yes"]
[null,7,"ST-",1428,"4040XP-CUSH",0,0,0,0,"With a -18 mounting plate instead of a -18PA plate ","Requires 4040XP-18 mounting  plate as a separate item","Yes","Yes"]
[null,8,"ST-",1495,"4010-REG",123,137,139,137,"For 180 degree opening","Requires a custom arm and 5\" wide hinges","Yes","No"]
[null,9,"ST-",1496,"4110-CUSH",0,0,0,0,"For installation with a coordinator","Requires a mounting bracket by others ( Ives )","Yes","Yes"]
[null,10,"ST-",1544,"4010-REG",0,0,0,0,"Pull side mounting with a GJ-100 or GJ-GJ-410 overhead stop","Requires a 4020-18 mounting plate as a separate item","Yes","Yes"]
[null,11,"ST-",1583,"4040XP-REG",0,0,0,0,"Pull side mounting with swing clear hinges","Swing clear hinges or pocket pivots","Yes","Yes"]
[null,12,"ST-",1595,"4040XP-CUSH",23,25,26,25,"Installation with 1/4\" solid  weather stripping","Special screw pack comes with a 7/8\" fifth screw spacer","Yes","No"]
[null,13,"ST-",1630,"4040XP-REG",0,0,0,0,"Pull side mounting with a GJ-100 or GJ-410 overhead stop","Requires a 4040XP-18TJ mounting plate as a separate item","Yes","Yes"]
[null,14,"ST-",1631,"4110-EDA",23,25,26,25,"Installation with 1/4\" solid weather stripping","Special screw pack comes with a 7/8\" fifth screw spacer","Yes","No"]
[null,15,"ST-",1712,"4310ME",0,0,0,0,"Installation with swing clear hinges","With Swing Clear Hinge","Yes","Yes"]
[null,16,"ST-",1736,"4010T",0,0,0,0,"Pull side mounting with a GJ-100 or GJ-410 overhead stop","Requires a 4020-18 mounting plate as a separate item","Yes","Yes"]
[null,17,"ST-",1751,"4110-CUSH",168,182,190,182,"18\" wide door installation","Uses a special arm","Yes","No"]
[null,18,"ST-",1754,"4040XP-EDA",0,0,0,0,"For installation with a coordinator","Requires a mounting bracket by others ( Ives )","Yes","Yes"]
[null,19,"ST-",1888,"4110-EDA",0,0,0,0,"With a 4020-18 mounting plate instead of a 4110-18","Requires a 4020-18 mounting plate as a separate item","Yes","Yes"]
[null,20,"ST-",1889,"4040XP-PA",0,0,0,0,"With a 4040XP-18 mounting plate instead of a 4040XP-18PA","Requires a 4040XP-18 mounting plate as a separate item","Yes","Yes"]
[null,21,"ST-",1944,"4040XP-EDA",23,25,26,25,"Installation with 1/4\" solid weather stripping","Special screw pack comes with a 7/8\" fifth screw spacer","Yes","No"]
[null,22,"ST-",1956,"4040XP-EDA",0,0,0,0,"Installation on a 16\" wide door","For EDA arms only","Yes","Yes"]
[null,23,"ST-",1974,"1460-REG",0,0,0,0,"Pull side mounting with a GJ-100 or GJ-410 overhead stop","Requires a 1460-18 mounting plate as a separate item","Yes","Yes"]
[null,24,"ST-",2018,"4310ME",23,25,26,25,"Pull side mounting with a GJ-100 or GJ-410 overhead stop","Uses a special angle bracket for the track mounting","Yes","No"]
[null,25,"ST-",2210,"2010/2210",0,0,0,0,"For installation with a GJ surface overhead stop","Suitable for 2010 / 2210 / 2310ME closers","Yes","Yes"]
[null,26,"ST-",2211,2030,0,0,0,0,"Installation with a GJ90 Surface overhead stop","Indicates recommended reinforcement for GJ-90 Jamb bracket","Yes","Yes"]
[null,27,"ST-",2220,"2030 / 5030",0,0,0,0,"Hollow Metal Frame installation","Indicates recommended mounting in Hollow Metal Frame","Yes","Yes"]
[null,28,"ST-",2246,"4010T",0,0,0,0,"16\" wide door installation of an unequal pair","Must be an unequal leaf or a pair due to the track length","Yes","Yes"]
[null,29,"ST-",2257,"4110-HCUSH",0,0,0,0,"Required when ordering a size six (4116)","A size 6 closer may be too strong & pull the door out of hold open","Yes","Yes"]
[null,30,"ST-",2266,2030,0,0,0,0,"Wood frame installation ","Requires 417 wood clips as a separate item","Yes","Yes"]
[null,31,"ST-",2303,4020,93,101,106,101,"12\" wide door installation ","Uses a special arm custom for a door as narrow as 12\" wide","Yes","No"]
[null,32,"ST-",2336,4010,47,51,54,51,"Heavy duty arm","Closer ships with a 4510 heavy duty arm","Yes","No"]
[null,33,"ST-",2392,"ALL",101,110,115,110,"LCN logo removal from visible parts","ST applies to all closers except the Fire & Life Safety units","No","No"]
[null,34,"ST-",2418,"4040XP-EDAG",0,0,0,0,"Installation with a 1/2\" stop","For blade stop installations ","Yes","Yes"]
[null,35,"ST-",2421,4010,86,93,97,93,"180 degrees with wide throw hinge installation","Requires a special arm. Regular arm only no hold open arms","Yes","No"]
[null,36,"ST-",2458,4020,119,129,135,129,"Custom Cut and Weld arm for deep reveals","11\" maximum, Require reveal, hinge size, degree of opening","No","No"]
[null,37,"ST-",2480,"4040/4110",559,604,629,604,"Arched door applications with custom mounting plates","STs for both door & frame plate or just door or just frame plate","Yes","No"]
[null,null,"ST-","2480-A","4040/4111",327,354,369,354,"Arched door applications with custom mounting plates","This ST is for just the closer plate only (CUSH or EDA No S-CUSH)","Yes","No"]
[null,null,"ST-","2480-B","4040/4111",247,267,278,267,"Arched door applications with custom mounting plates","This ST is for just the frame plate only (CUSH or EDA No S-CUSH)","Yes","No"]
[null,38,"ST-",2481,"4040XP-EDA",185,200,208,200,"Custom Cut and Weld arm for wide throw hinges ","Also for 1 1/2\" pivots, require hinge size & degree of opening","No","No"]
[null,39,"ST-",2492,3130,54,59,62,59,"4' wide door installation","Similar to a size 4 door closer","No","No"]
[null,40,"ST-",2533,"2310ME",43,47,49,47,"With bumper and stop assembly ","Bumper and bumper stop is installed in track","No","No"]
[null,41,"ST-",2541,"4010T",54,59,62,59,"Delay action closer","Delay action 4010T closer","No","No"]
[null,42,"ST-",2546,"1460T",51,56,59,56,"Delay action closer","Delay action 1460T closer","No","No"]
[null,43,"ST-",2573,"1460-REG",93,101,106,101,"Custom cut and weld arm for 180 degree openings","Pull side mount only, require hinge size & degree of opening","No","No"]
[null,44,"ST-",2575,"4040XP-REG",101,110,115,110,"Custom arm for wide throw hinges","Need hinge size & degree of opening if going TJ need reveal","No","No"]
[null,45,"ST-",2577,"4110-HEDA",157,170,177,170,"Custom arm for wide throw hinges","Specify hand & hinge size & degree of opening","No","No"]
[null,46,"ST-",2618,2030,76,83,87,83,"Special (P-1162) arm","Suitable for Kawneer balanced door","No","No"]
[null,47,"ST-",2648,"4040XP-CUSH",0,0,0,0,"For installation with a coordinator","Requires a mounting bracket by others ( Ives )","Yes","Yes"]
[null,48,"ST-",2663,2030,0,0,0,0,"Total Door installation","Template showing dimensions for Total Door installation","Yes","Yes"]
[null,49,"ST-",2693,"1460-CUSH",23,25,26,25,"Installation with 1/4\" solid weather stripping","Special screw pack comes with a 7/8\" fifth screw spacer","Yes","No"]
[null,50,"ST-",2708,"4040XP-REG",0,0,0,0,"Pull side mounting with a GJ-100 or GJ-410 overhead stop","Requires a 4040XP-18G mounting plate as a separate item","Yes","Yes"]
[null,51,"ST-",2714,5030,134,145,151,145,"Custom closer faceplate notched for GJ-100 (Butts or OP)","For a 1 3/4\" door using GJ-104 to GJ-106 only Specify GJ-100 size","Yes","No"]
[null,53,"ST-",2730,4110,73,79,83,79,"Custom bent arm to work with a GJ90 overhead stop","Bent arm with a 62G shoe will work with GJ-901 to GJ-904","Yes","No"]
[null,54,"ST-",2731,"4040XP-EDA",95,103,108,103,"Custom bent arm to work with a GJ90 overhead stop","Bent arm with a 62G shoe will work with GJ-901 to GJ-904","Yes","No"]
[null,55,"ST-",2732,"4110-EDAG",0,0,0,0,"Push mounting with a GJ 450 overhead stop","62G shoe is required. Will work with size GJ-451 through GJ-454","Yes","Yes"]
[null,56,"ST-",2795,"4040XP-REG",54,59,62,59,"Pull side installation with special solid arm","Hold open not available","Yes","No"]
[null,57,"ST-",2806,"4040SE",0,0,0,0,"Pull side mounting with a GJ-100 or GJ-410 overhead stop","Requires a 4040XP-18G mounting plate as a separate item","Yes","Yes"]
[null,58,"ST-",2817,"4040SE",73,79,83,79,"Custom arm for installation on a 24\" wide door","This is the smallest door width possible for pull side","Yes","No"]
[null,59,"ST-",2850,"1260-REG",0,0,0,0,"Pull side mounting with a GJ-100 or GJ-410 overhead stop","Requires a 1260-18 mounting plate as a separate item","Yes","Yes"]
[null,60,"ST-",2939,"4310ME",123,133,139,133,"Custom DE arm for 3 3/4\" reveal","This arm is for reveals from 2 3/4\" to 3 3/4\"","Yes","No"]
[null,61,"ST-",2966,"4040SEL",0,0,0,0,"Pull side mounting with swing clear hinges","Must be a SEL  will not work with SE","Yes","Yes"]
[null,62,"ST-",2967,"4000T/4040XP",29,32,34,32,"Substitute the 4000T closer body with a 4040XP body","Spring power must be adjusted to close the door.","Yes","No"]
[null,63,"ST-",2997,"4010/4020",54,59,62,59,"To get AVB (Advanced Variable Backcheck)","For AVB on either a 4010 or a 4020 series closer","No","No"]
[null,64,"ST-",3062,"4010T-DE",0,0,0,0,"Pull side DE mounting with a GJ-100 or GJ-410 overhead stop","Requires a 4020-18 mounting plate as a separate item","Yes","Yes"]
[null,65,"ST-",3068,"4040XP",22,24,25,24,"LCN turns in the backcheck selector valve prior to shipping","For all PA mounts PA / EDA / CUSH / etc.","No","No"]
[null,66,"ST-",3071,4640,0,0,0,0,"For a 32\" wide door. Provides 120 degrees of opening","Must be able to overhang the frame face at the hinge side","Yes","Yes"]
[null,67,"ST-",3073,"4040XP-T-DE",0,0,0,0,"DE arm for reveals up to 2 11/16\"","Handed arms and will not work with delay action closer","Yes","Yes"]
[null,68,"ST-",3074,"4040XP-T-DE",141,153,160,153,"Custom DE arm for reveals up to 4\"","Handed arms and will not work with delay action closer","Yes","No"]
[null,69,"ST-",3088,4640,53,58,61,58,"Extra long rod and shoe for deep reveals","For reveals from 8\" to 11\" maximum","No","No"]
[null,70,"ST-",3110,4630,24,26,28,26,"Pull side mounting with a GJ-100 or GJ-410 overhead stop","Uses a special angle bracket for the track mounting","Yes","No"]
[null,72,"ST-",3179,4020,51,56,59,56,"Special extended spindle (uses a 5010 spindle)","Popular application for installation in a operator header","No","No"]
[null,73,"ST-",3182,"4040XP-T",0,0,0,0,"Pull side mounting with a GJ-100 or GJ-410 overhead stop","Requires a 4040XP-18G mounting plate as a separate item","Yes","Yes"]
[null,74,"ST-",3184,"4040SE-DE",0,0,0,0,"Pull side mounting with a GJ-100 or GJ-410 overhead stop","Requires a 4040XP-18G mounting plate as a separate item","Yes","Yes"]
[null,75,"ST-",3195,"4040 / 4110",0,0,0,0,"Old style take apart arm","Available on all EDA and CUSH arms","No","No"]
[null,76,"ST-",3212,4020,115,125,130,125,"Special extended spindle and a shaft spacer","Popular application for installation in a operator header","No","No"]
[null,77,"ST-",3231,2030,114,124,129,124,"Special arm  special track and special roller","Popular for retrofit of closer on some door manufacturers doors","No","No"]
[null,78,"ST-",3259,"1460T",0,0,0,0,"Pull side mounting with a GJ-100 or GJ-410 overhead stop","Requires a 1460-18 mounting plate as a separate item","Yes","Yes"]
[null,79,"ST-",3280,5030,134,145,151,145,"Custom closer faceplate notched for GJ-100 ","For a 2 1/4\" door using GJ-104 to GJ-106. Specify GJ-100 size","Yes","No"]
[null,80,"ST-",3312,"4040XP",41,45,47,45,"Substitute the 4040XP closer body with a 4040SE body","Can be used with any arm option","No","No"]
[null,81,"ST-",3351,"4040SEL",180,195,203,195,"Special DE arm for 4\" reveal Total Doors","Handing is required and the closer must have a SEL track","Yes","No"]
[null,82,"ST-",3401,"4310ME",16,18,19,18,"Replace swing free arm with a solid arm","Uses a 4010T arm","Yes","No"]
[null,83,"ST-",3409,"1460-EDA",0,0,0,0,"For installation with a coordinator","Requires a mounting bracket by others ( Ives )","Yes","Yes"]
[null,84,"ST-",3410,"1460-CUSH",0,0,0,0,"For installation with a coordinator","Requires a mounting bracket by others ( Ives )","Yes","Yes"]
[null,85,"ST-",3424,"4040XP-T-DE",0,0,0,0,"Pull side mounting with a GJ-100 or GJ-410 overhead stop","Requires a 4040XP-18G mounting plate as a separate item","Yes","Yes"]
[null,86,"ST-",3448,"4040XP-EDAG",0,0,0,0,"For installation with a GJ-81 series overhead stop","62G shoe required. If a drop plate is required use the 4040XP-18","Yes","Yes"]
[null,88,"ST-",3472,"4050-T",0,0,0,0,"Installation pull side top jamb","Closer mounts like a 4020-T","Yes","Yes"]
[null,89,"ST-",3507,4030,0,0,0,0,"Pull side mounting on a 12\"  wide door","For regular arm only no hold open arms","Yes","Yes"]
[null,90,"ST-",3554,"All Operators",0,0,0,0,"French Caution Automatic Door decal","Decal reads \" ATTENTION !   PORTE  AUTOMATIQUE \"","No","No"]
[null,91,"ST-",3556,4030,0,0,0,0,"Installation with a 62A shoe to clear surface overhead stop","Closer must be ordered with REG / 62A arm","Yes","Yes"]
[null,92,"ST-",3577,"1460-EDA",23,25,26,25,"Installation with 1/4\" solid weather stripping","Special screw pack comes with a 7/8\" fifth screw spacer","Yes","No"]
[null,93,"ST-",3592,"4040XP-T",0,0,0,0,"For use on half / bar style gates","No hold open available","Yes","Yes"]
[null,94,"ST-",3603,"1460-FC",76,83,87,83,"Full cover mounted pull side with a GJ-100 or GJ GJ-410","This ST applies to the required 1460-18FC not the door closer","Yes","No"]
[null,95,"ST-",3625,"9530 /9540",1197,1293,1345,1293,"Powder coat finishes ( 6 standard finishes / no black)","Maximum length of header is 72\"","No","No"]
[null,96,"ST-",3642,9530,25,27,29,27,"With longer track for emergency double acting door","Special long track supplied","Yes","No"]
[null,97,"ST-",5011,"1450-REG",28,31,33,31,"Pull side mounting with a GJ-100 or GJ-410 overhead stop","Requires a 1450-18 mounting plate as a separate item","Yes","Yes"]
[null,98,"ST-",5012,"1250-REG",28,31,33,31,"Pull side mounting with a GJ-100 or GJ-410 overhead stop","Requires a 1250-18 mounting plate as a separate item","Yes","Yes"]
[null,99,"ST-",5203,"4050A",25,31,33,31,"Pull side mounting with a GJ-100 or GJ-410 overhead stop","This ST applies to the required 4050A-18 not the door closer","Yes","No"]
[null,100,"ST-",5207,"4050A-CUSH",28,31,33,31,"Installation with 1/4\" solid weather stripping","Special screw pack comes with a 7/8\" fifth screw spacer","Yes","No"]

{"sheet":"1000 Series","index":2,"n_rows":27,"n_cols":14,"rows_kept":27,"cut":false,"hidden":false,"merged":[[6,1,7,1],[9,1,10,1],[12,1,13,1],[15,1,26,1],[1,1,1,13]]}
[]
[null,"1000 SERIES CLOSERS"]
[]
[null,null,null,null,null,null,null,"2022 List","2024 List","2023 List",null,null,"Template","Standard "]
[null,"Series",null,"ST-","Number","ST-Number","Product","Up-charge","Up-Charge","Up-charge","      Application type","        Description","Available","Product"]
[]
[null,1250,33,"ST-",2392,{"$f":"D7&E7","v":"ST-2392"},1250,101,115,{"$f":"'    List by ST Number   '!G39","v":110},"LCN logo removal from visible parts","ST applies to all closers except the Fire & Life Safety units","No","No"]
[null,null,98,"ST-",5012,{"$f":"D8&E8","v":"ST-5012"},"1250-REG",28,33,{"$f":"'    List by ST Number   '!G103","v":31},"Pull side mounting with a GJ-100 or GJ-410 overhead stop","Requires a 1250-18 mounting plate as a separate item","Yes","Yes"]
[null,null,null,null,null,""]
[null,1260,33,"ST-",2392,"ST-2392",1260,null,115,{"$f":"'    List by ST Number   '!G39","v":110},"LCN logo removal from visible parts","ST applies to all closers except the Fire & Life Safety units","No","No"]
[null,null,59,"ST-",2850,"ST-2850","1260-REG",0,0,{"$f":"'    List by ST Number   '!G66","v":0},"Pull side mounting with a GJ-100 or GJ-410 overhead stop","Requires a 1260-18 mounting plate as a separate item","Yes","Yes"]
[null,null,null,null,null,""]
[null,1450,33,"ST-",2392,"ST-2392",1450,101,115,{"$f":"'    List by ST Number   '!G39","v":110},"LCN logo removal from visible parts","ST applies to all closers except the Fire & Life Safety units","No","No"]
[null,null,97,"ST-",5011,"ST-5011","1450-REG",28,33,{"$f":"'    List by ST Number   '!G102","v":31},"Pull side mounting with a GJ-100 or GJ-410 overhead stop","Requires a 1450-18 mounting plate as a separate item","Yes","Yes"]
[null,null,null,null,null,""]
[null,1460,33,"ST-",2392,"ST-2392",1460,101,115,{"$f":"'    List by ST Number   '!G39","v":110},"LCN logo removal from visible parts","ST applies to all closers except the Fire & Life Safety units","No","No"]
[null,null,83,"ST-",3409,{"$f":"D19&E19","v":"ST-2693"},"1460-CUSH",23,26,{"$f":"'    List by ST Number   '!G57","v":25},"Installation with 1/4\" solid weather stripping","Special screw pack comes with a 7/8\" fifth screw spacer","Yes","No"]
[null,null,92,"ST-",3577,{"$f":"D20&E20","v":"ST-3410"},"1460-CUSH",0,0,{"$f":"'    List by ST Number   '!G90","v":0},"For installation with a coordinator","Requires a mounting bracket by others ( Ives )","Yes","Yes"]
[null,null,49,"ST-",2693,{"$f":"D17&E17","v":"ST-3409"},"1460-EDA",0,0,{"$f":"'    List by ST Number   '!G89","v":0},"For installation with a coordinator","Requires a mounting bracket by others ( Ives )","Yes","Yes"]
[null,null,84,"ST-",3410,{"$f":"D18&E18","v":"ST-3577"},"1460-EDA",23,26,{"$f":"'    List by ST Number   '!G97","v":25},"Installation with 1/4\" solid weather stripping","Special screw pack comes with a 7/8\" fifth screw spacer","Yes","No"]
[null,null,23,"ST-",1974,{"$f":"D21&E21","v":"ST-1974"},"1460-REG",0,0,{"$f":"'    List by ST Number   '!G29","v":0},"Pull side mounting with a GJ-100 or GJ-410 overhead stop","Requires a 1460-18 mounting plate as a separate item","Yes","Yes"]
[null,null,43,"ST-",2573,{"$f":"D22&E22","v":"ST-2573"},"1460-REG",93,106,{"$f":"'    List by ST Number   '!G51","v":101},"Custom cut and weld arm for 180 degree openings","Pull side mount only, require hinge size & degree of opening","No","No"]
[]
[null,null,94,"ST-",3603,{"$f":"D24&E24","v":"ST-3603"},"1460-FC",76,87,{"$f":"'    List by ST Number   '!G99","v":83},"Full cover mounted pull side with a GJ-100 or GJ GJ-410","This ST applies to the required 1460-18FC not the door closer","Yes","No"]
[null,null,null,null,null,{"$f":"D25&E25","v":""}]
[null,null,78,"ST-",3259,{"$f":"D26&E26","v":"ST-3259"},"1460T",0,0,{"$f":"'    List by ST Number   '!G84","v":0},"Pull side mounting with a GJ-100 or GJ-410 overhead stop","Requires a 1460-18 mounting plate as a separate item","Yes","Yes"]
[null,null,42,"ST-",2546,{"$f":"D27&E27","v":"ST-2546"},"1460T",51,59,{"$f":"'    List by ST Number   '!G50","v":56},"Delay action closer","Delay action 1460T closer","No","No"]

{"sheet":"4000 Series","index":3,"n_rows":106,"n_cols":14,"rows_kept":106,"cut":false,"hidden":false,"merged":[[85,1,104,1],[80,1,83,1],[1,1,1,13],[6,1,7,1],[9,1,14,1],[16,1,20,1],[22,1,27,1],[29,1,31,1],[33,1,70,1],[72,1,78,1]]}
[]
[null,"4000 SERIES CLOSERS"]
[]
[null,null,null,null,null,null,null,"2022 List","2024 List","2023 List",null,null,"Template","Standard "]
[null,"Series",null,null,null,"ST-Number","Product","Up-Charge","Up-Charge","Up-Charge","      Application Type","        Description","Available","Product"]
[]
[null,"4000T",62,"ST-",2967,{"$f":"D7&E7","v":"ST-2967"},"4000T/4040XP",29,34,{"$f":"'    List by ST Number   '!G69","v":32},"Substitute the 4000T closer body with a 4040XP body","Spring power must be adjusted to close the door.","Yes","No"]
[null,null,33,"ST-",2392,{"$f":"D8&E8","v":"ST-2392"},"4000T",101,115,{"$f":"'    List by ST Number   '!G39","v":110},"LCN logo removal from visible parts","ST applies to all closers except the Fire & Life Safety units","No","No"]
[null,null,null,null,null,""]
[null,4010,8,"ST-",1495,"ST-1495","4010-REG",123,139,{"$f":"'    List by ST Number   '!G14","v":137},"For 180 degree opening","Requires a custom arm and 5\" wide hinges","Yes","No"]
[null,null,10,"ST-",1544,"ST-1544","4010-REG",0,0,{"$f":"'    List by ST Number   '!G16","v":0},"Pull side mounting with a GJ-100 or GJ-GJ-410 overhead stop","Requires a 4020-18 mounting plate as a separate item","Yes","Yes"]
[null,null,32,"ST-",2336,"ST-2336",4010,47,54,{"$f":"'    List by ST Number   '!G38","v":51},"Heavy duty arm","Closer ships with a 4510 heavy duty arm","Yes","No"]
[null,null,35,"ST-",2421,"ST-2421",4010,86,97,{"$f":"'    List by ST Number   '!G41","v":93},"180 degrees with wide throw hinge installation","Requires a special arm. Regular arm only no hold open arms","Yes","No"]
[null,null,63,"ST-",2997,"ST-2997","4010/4020",54,62,{"$f":"'    List by ST Number   '!G70","v":59},"To get AVB (Advanced Variable Backcheck)","For AVB on either a 4010 or a 4020 series closer","No","No"]
[null,null,33,"ST-",2392,"ST-2392",4010,101,115,{"$f":"'    List by ST Number   '!G39","v":110},"LCN logo removal from visible parts","ST applies to all closers except the Fire & Life Safety units","No","No"]
[null,null,null,null,null,""]
[null,"4010-T",16,"ST-",1736,"ST-1736","4010T",0,0,{"$f":"'    List by ST Number   '!G22","v":0},"Pull side mounting with a GJ-100 or GJ-410 overhead stop","Requires a 4020-18 mounting plate as a separate item","Yes","Yes"]
[null,null,28,"ST-",2246,"ST-2246","4010T",0,0,{"$f":"'    List by ST Number   '!G34","v":0},"16\" wide door installation of an unequal pair","Must be an unequal leaf or a pair due to the track length","Yes","Yes"]
[null,null,41,"ST-",2541,"ST-2541","4010T",54,62,{"$f":"'    List by ST Number   '!G49","v":59},"Delay action closer","Delay action 4010T closer","No","No"]
[null,null,64,"ST-",3062,"ST-3062","4010T-DE",0,0,{"$f":"'    List by ST Number   '!G71","v":0},"Pull side DE mounting with a GJ-100 or GJ-410 overhead stop","Requires a 4020-18 mounting plate as a separate item","Yes","Yes"]
[null,null,33,"ST-",2392,"ST-2392","4010-T",101,115,{"$f":"'    List by ST Number   '!G39","v":110},"LCN logo removal from visible parts","ST applies to all closers except the Fire & Life Safety units","No","No"]
[null,null,null,null,null,""]
[null,4020,null,"ST-",2303,{"$f":"D23&E23","v":"ST-2303"},4020,null,106,{"$f":"'    List by ST Number   '!G37","v":101},"12\" wide door installation ","Uses a special arm custom for a door as narrow as 12\" wide","Yes","No"]
[null,null,36,"ST-",2458,{"$f":"D24&E24","v":"ST-2458"},4020,119,135,{"$f":"'    List by ST Number   '!G42","v":129},"Custom Cut and Weld arm for deep reveals","11\" maximum, Require reveal, hinge size, degree of opening","No","No"]
[null,null,63,"ST-",2997,{"$f":"D25&E25","v":"ST-2997"},"4010/4020",54,62,{"$f":"'    List by ST Number   '!G70","v":59},"To get AVB (Advanced Variable Backcheck)","For AVB on either a 4010 or a 4020 series closer","No","No"]
[null,null,76,"ST-",3212,"ST-3212",4020,115,130,{"$f":"'    List by ST Number   '!G82","v":125},"Special extended spindle and a shaft spacer","Popular application for installation in a operator header","No","No"]
[null,null,72,"ST-",3179,"ST-3179",4020,51,59,{"$f":"'    List by ST Number   '!G78","v":56},"Special extended spindle (uses a 5010 spindle)","Popular application for installation in a operator header","No","No"]
[null,null,33,"ST-",2392,"ST-2392",4020,101,115,{"$f":"'    List by ST Number   '!G39","v":110},"LCN logo removal from visible parts","ST applies to all closers except the Fire & Life Safety units","No","No"]
[null,null,null,null,null,""]
[null,4030,89,"ST-",3507,"ST-3507",4030,0,0,{"$f":"'    List by ST Number   '!G94","v":0},"Pull side mounting on a 12\"  wide door","For regular arm only no hold open arms","Yes","Yes"]
[null,null,91,"ST-",3556,"ST-3556",4030,0,0,{"$f":"'    List by ST Number   '!G96","v":0},"Installation with a 62A shoe to clear surface overhead stop","Closer must be ordered with REG / 62A arm","Yes","Yes"]
[null,null,33,"ST-",2392,"ST-2392",4030,101,115,{"$f":"'    List by ST Number   '!G39","v":110},"LCN logo removal from visible parts","ST applies to all closers except the Fire & Life Safety units","No","No"]
[null,null,null,null,null,""]
[null,"4040XP",62,"ST-",2967,"ST-2967","4040XP",29,34,{"$f":"'    List by ST Number   '!G69","v":32},"Substitute the 4000T closer body with a 4040XP body","Spring power must be adjusted to close the door.","Yes","No"]
[null,null,80,"ST-",3312,"ST-3312","4040XP",41,47,{"$f":"'    List by ST Number   '!G86","v":45},"Substitute the 4040XP closer body with a 4040SE body","Can be used with any arm option","No","No"]
[null,null,null,null,null,""]
[null,null,11,"ST-",1583,"ST-1583","4040XP-REG",0,0,{"$f":"'    List by ST Number   '!G17","v":0},"Pull side mounting with swing clear hinges","Swing clear hinges or pocket pivots","Yes","Yes"]
[null,null,13,"ST-",1630,"ST-1630","4040XP-REG",0,0,{"$f":"'    List by ST Number   '!G19","v":0},"Pull side mounting with a GJ-100 or GJ-410 overhead stop","Requires a 4040XP-18TJ mounting plate as a separate item","Yes","Yes"]
[null,null,44,"ST-",2575,"ST-2575","4040XP-REG",101,115,{"$f":"'    List by ST Number   '!G52","v":110},"Custom arm for wide throw hinges","Need hinge size & degree of opening if going TJ need reveal","No","No"]
[null,null,50,"ST-",2708,"ST-2708","4040XP-REG",0,0,{"$f":"'    List by ST Number   '!G58","v":0},"Pull side mounting with a GJ-100 or GJ-410 overhead stop","Requires a 4040XP-18G mounting plate as a separate item","Yes","Yes"]
[null,null,56,"ST-",2795,"ST-2795","4040XP-REG",54,62,{"$f":"'    List by ST Number   '!G63","v":59},"Pull side installation with special solid arm","Hold open not available","Yes","No"]
[null,null,33,"ST-",2392,"ST-2392","4040XP-REG",101,115,{"$f":"'    List by ST Number   '!G39","v":110},"LCN logo removal from visible parts","ST applies to all closers except the Fire & Life Safety units","No","No"]
[null,null,null,null,null,""]
[null,null,20,"ST-",1889,"ST-1889","4040XP-PA",0,0,{"$f":"'    List by ST Number   '!G26","v":0},"With a 4040XP-18 mounting plate instead of a 4040XP-18PA","Requires a 4040XP-18 mounting plate as a separate item","Yes","Yes"]
[null,null,65,"ST-",3068,"ST-3068","4040XP-PA",22,25,{"$f":"'    List by ST Number   '!G72","v":24},"LCN turns in the backcheck selector valve prior to shipping","For all PA mounts PA / EDA / CUSH / etc.","No","No"]
[null,null,33,"ST-",2392,"ST-2392","4040XP-PA",101,115,{"$f":"'    List by ST Number   '!G39","v":110},"LCN logo removal from visible parts","ST applies to all closers except the Fire & Life Safety units","No","No"]
[null,null,null,null,null,""]
[null,null,5,"ST-",1358,"ST-1358","4040XP-EDA",0,0,{"$f":"'    List by ST Number   '!G11","v":0},"With a -18 mounting plate instead of a -18PA plate ","Requires 4040XP-18 mounting  plate as a separate item","Yes","Yes"]
[null,null,18,"ST-",1754,"ST-1754","4040XP-EDA",0,0,{"$f":"'    List by ST Number   '!G24","v":0},"For installation with a coordinator","Requires a mounting bracket by others ( Ives )","Yes","Yes"]
[null,null,21,"ST-",1944,"ST-1944","4040XP-EDA",23,26,{"$f":"'    List by ST Number   '!G27","v":25},"Installation with 1/4\" solid weather stripping","Special screw pack comes with a 7/8\" fifth screw spacer","Yes","No"]
[null,null,22,"ST-",1956,"ST-1956","4040XP-EDA",0,0,{"$f":"'    List by ST Number   '!G28","v":0},"Installation on a 16\" wide door","For EDA arms only","Yes","Yes"]
[null,null,34,"ST-",2418,"ST-2418","4040XP-EDAG",0,0,{"$f":"'    List by ST Number   '!G40","v":0},"Installation with a 1/2\" stop","For blade stop installations ","Yes","Yes"]
[null,null,38,"ST-",2481,"ST-2481","4040XP-EDA",185,208,{"$f":"'    List by ST Number   '!G46","v":200},"Custom Cut and Weld arm for wide throw hinges ","Also for 1 1/2\" pivots, require hinge size & degree of opening","No","No"]
[null,null,54,"ST-",2731,"ST-2731","4040XP-EDA",95,108,{"$f":"'    List by ST Number   '!G61","v":103},"Custom bent arm to work with a GJ90 overhead stop","Bent arm with a 62G shoe will work with GJ-901 to GJ-904","Yes","No"]
[null,null,65,"ST-",3068,"ST-3068","4040XP-EDA",22,25,{"$f":"'    List by ST Number   '!G72","v":24},"LCN turns in the backcheck selector valve prior to shipping","For all PA mounts PA / EDA / CUSH / etc.","No","No"]
[null,null,75,"ST-",3195,"ST-3195","4040XP-EDA",0,0,{"$f":"'    List by ST Number   '!G81","v":0},"Old style take apart arm","Available on all EDA and CUSH arms","No","No"]
[null,null,33,"ST-",2392,"ST-2392","4040XP-EDA",101,115,{"$f":"'    List by ST Number   '!G39","v":110},"LCN logo removal from visible parts","ST applies to all closers except the Fire & Life Safety units","No","No"]
[null,null,86,"ST-",3448,"ST-3448","4040XP-EDAG",0,0,{"$f":"'    List by ST Number   '!G92","v":0},"For installation with a GJ-81 series overhead stop","62G shoe required. If a drop plate is required use the 4040XP-18","Yes","Yes"]
[null,null,null,"ST-","2480-2","ST-2480-2","4040XP-EDA",559,629,{"$f":"'    List by ST Number   '!G43","v":604},"Arched door applications with custom mounting plates","This ST is for both the door & frame plates (CUSH or EDA No S-CUSH)","Yes","Yes"]
[null,null,null,"ST-","2480-2A","ST-2480-2A","4040XP-EDA",327,369,{"$f":"'    List by ST Number   '!G44","v":354},"Arched door applications with custom mounting plate","This ST is for just the closer plate only (CUSH or EDA No S-CUSH)","Yes","Yes"]
[null,null,null,"ST-","2480-2B","ST-2480-2B","4040XP-EDA",247,278,{"$f":"'    List by ST Number   '!G45","v":267},"Arched door applications with custom mounting plates","This ST is for just the frame plate only (CUSH or EDA No S-CUSH)","Yes","Yes"]
[null,null,null,null,null,""]
[null,null,7,"ST-",1428,"ST-1428","4040XP-CUSH",0,0,{"$f":"'    List by ST Number   '!G13","v":0},"With a -18 mounting plate instead of a -18PA plate ","Requires 4040XP-18 mounting  plate as a separate item","Yes","Yes"]
[null,null,12,"ST-",1595,"ST-1595","4040XP-CUSH",23,26,{"$f":"'    List by ST Number   '!G18","v":25},"Installation with 1/4\" solid  weather stripping","Special screw pack comes with a 7/8\" fifth screw spacer","Yes","No"]
[null,null,47,"ST-",2648,"ST-2648","4040XP-CUSH",0,0,{"$f":"'    List by ST Number   '!G55","v":0},"For installation with a coordinator","Requires a mounting bracket by others ( Ives )","Yes","Yes"]
[null,null,65,"ST-",3068,"ST-3068","4040XP-CUSH",22,25,{"$f":"'    List by ST Number   '!G72","v":24},"LCN turns in the backcheck selector valve prior to shipping","For all PA mounts PA / EDA / CUSH / etc.","No","No"]
[null,null,75,"ST-",3195,"ST-3195","4040XP-CUSH",0,0,{"$f":"'    List by ST Number   '!G81","v":0},"Old style take apart arm","Available on all EDA and CUSH arms","No","No"]
[null,null,33,"ST-",2392,"ST-2392","4040XP-CUSH",101,115,{"$f":"'    List by ST Number   '!G39","v":110},"LCN logo removal from visible parts","ST applies to all closers except the Fire & Life Safety units","No","No"]
[null,null,null,"ST-","2480-2","ST-2480-2","4040XP-CUSH",559,629,{"$f":"'    List by ST Number   '!G43","v":604},"Arched door applications with custom mounting plates","This ST is for both the door & frame plates (CUSH or EDA No S-CUSH)","Yes","Yes"]
[null,null,null,"ST-","2480-2A","ST-2480-2A","4040XP-CUSH",327,369,{"$f":"'    List by ST Number   '!G44","v":354},"Arched door applications with custom mounting plate","This ST is for just the closer plate only (CUSH or EDA No S-CUSH)","Yes","Yes"]
[null,null,null,"ST-","2480-2B","ST-2480-2B","4040XP-CUSH",247,278,{"$f":"'    List by ST Number   '!G45","v":267},"Arched door applications with custom mounting plates","This ST is for just the frame plate only (CUSH or EDA No S-CUSH)","Yes","Yes"]
[null,null,null,null,null,""]
[null,"4040XP-T","new","ST-",1887,{"$f":"D73&E73","v":"ST-1887"},"4040XP-T",null,26,25,"Installation with 1/4\" solid  weather stripping","Special screw pack comes with a 7/8\" fifth screw spacer","Yes","No"]
[null,null,73,"ST-",3182,{"$f":"D74&E74","v":"ST-3182"},"4040XP-T",0,0,{"$f":"'    List by ST Number   '!G79","v":0},"Pull side mounting with a GJ-100 or GJ-410 overhead stop","Requires a 4040XP-18G mounting plate as a separate item","Yes","Yes"]
[null,null,93,"ST-",3592,"ST-3592","4040XP-T",0,0,{"$f":"'    List by ST Number   '!G98","v":0},"For use on half / bar style gates","No hold open available","Yes","Yes"]
[null,null,67,"ST-",3073,{"$f":"D76&E76","v":"ST-3073"},"4040XP-T-DE",0,0,{"$f":"'    List by ST Number   '!G74","v":0},"DE arm for reveals up to 2 11/16\"","Handed arms and will not work with delay action closer","Yes","Yes"]
[null,null,68,"ST-",3074,"ST-3074","4040XP-T-DE",141,160,{"$f":"'    List by ST Number   '!G75","v":153},"Custom DE arm for reveals up to 4\"","Handed arms and will not work with delay action closer","Yes","No"]
[null,null,85,"ST-",3424,"ST-3424","4040XP-T-DE",0,0,{"$f":"'    List by ST Number   '!G91","v":0},"Pull side mounting with a GJ-100 or GJ-410 overhead stop","Requires a 4040XP-18G mounting plate as a separate item","Yes","Yes"]
[null,null,87,"ST-",3462,{"$f":"D80&E80","v":"ST-2392"},"4040XP-T-DE",101,115,{"$f":"'    List by ST Number   '!G39","v":110},"LCN logo removal from visible parts","ST applies to all closers except the Fire & Life Safety units","No","No"]
[null,null,33,"ST-",2392]
[null,4050,99,"ST-",5203,"ST-5203","4050A",25,33,{"$f":"'    List by ST Number   '!G104","v":31},"Pull side mounting with a GJ-100 or GJ-410 overhead stop","This ST applies to the required 4050A-18 not the door closer","Yes","No"]
[null,null,100,"ST-",5207,"ST-5207","4050A-CUSH",28,33,{"$f":"'    List by ST Number   '!G105","v":31},"Installation with 1/4\" solid weather stripping","Special screw pack comes with a 7/8\" fifth screw spacer","Yes","No"]
[null,null,88,"ST-",3472,"ST-3472","4050-T",0,0,{"$f":"'    List by ST Number   '!G93","v":0},"Installation pull side top jamb","Closer mounts like a 4020-T","Yes","Yes"]
[null,null,33,"ST-",2392,"ST-2392","4050A",101,115,{"$f":"'    List by ST Number   '!G39","v":110},"LCN logo removal from visible parts","ST applies to all closers except the Fire & Life Safety units","No","No"]
[null,null,null,null,null,""]
[null,4110,null,"ST-",1384,{"$f":"D86&E86","v":"ST-1384"},"4110-EDA",null,0,{"$f":"'    List by ST Number   '!G12","v":0},"For installation with a coordinator","Requires a mounting bracket by others ( Ives )","Yes","Yes"]
[null,null,null,"ST-",1631,{"$f":"D87&E87","v":"ST-1631"},"4110-EDA",null,26,{"$f":"'    List by ST Number   '!G20","v":25},"Installation with 1/4\" solid weather stripping","Special screw pack comes with a 7/8\" fifth screw spacer","Yes","No"]
[null,null,19,"ST-",1888,"ST-1888","4110-EDA",0,0,{"$f":"'    List by ST Number   '!G25","v":0},"With a 4020-18 mounting plate instead of a 4110-18","Requires a 4020-18 mounting plate as a separate item","Yes","Yes"]
[null,null,53,"ST-",2730,"ST-2730","4110-EDA",73,83,{"$f":"'    List by ST Number   '!G60","v":79},"Custom bent arm to work with a GJ90 overhead stop","Bent arm with a 62G shoe will work with GJ-901 to GJ-904","Yes","No"]
[null,null,55,"ST-",2732,{"$f":"D91&E91","v":"ST-3195"},"4110-EDA",0,0,{"$f":"'    List by ST Number   '!G81","v":0},"Old style take apart arm","Available on all EDA and CUSH arms","No","No"]
[null,null,75,"ST-",3195,{"$f":"D93&E93","v":"ST-2392"},"4110-EDA",101,115,{"$f":"'    List by ST Number   '!G39","v":110},"LCN logo removal from visible parts","ST applies to all closers except the Fire & Life Safety units","No","No"]
[null,null,45,"ST-",2577,"ST-2480","4110-EDA",559,629,{"$f":"'    List by ST Number   '!G43","v":604},"Arched door applications with custom mounting plates","This ST is for both the door & frame plates (CUSH or EDA No S-CUSH)","Yes","Yes"]
[null,null,33,"ST-",2392,"ST-2480-A","4110-EDA",327,369,{"$f":"'    List by ST Number   '!G44","v":354},"Arched door applications with custom mounting plate","This ST is for just the closer plate only (CUSH or EDA No S-CUSH)","Yes","Yes"]
[null,null,null,null,null,"ST-2480-B","4110-EDA",247,278,{"$f":"'    List by ST Number   '!G45","v":267},"Arched door applications with custom mounting plates","This ST is for just the frame plate only (CUSH or EDA No S-CUSH)","Yes","Yes"]
[null,null,null,null,null,{"$f":"D90&E90","v":"ST-2732"},"4110-EDAG",0,0,{"$f":"'    List by ST Number   '!G62","v":0},"Push mounting with a GJ 450 overhead stop","62G shoe is required. Will work with size GJ-451 through GJ-454","Yes","Yes"]
[null,null,null,null,null,{"$f":"D92&E92","v":"ST-2577"},"4110-HEDA",157,177,{"$f":"'    List by ST Number   '!G53","v":170},"Custom arm for wide throw hinges","Specify hand & hinge size & degree of opening","No","No"]
[]
[null,null,null,null,null,{"$f":"D101&E101","v":"ST-1496"},"4110-CUSH",0,0,{"$f":"'    List by ST Number   '!G15","v":0},"For installation with a coordinator","Requires a mounting bracket by others ( Ives )","Yes","Yes"]
[null,null,null,null,null,{"$f":"D102&E102","v":"ST-1751"},"4110-CUSH",168,190,{"$f":"'    List by ST Number   '!G23","v":182},"18\" wide door installation","Uses a special arm","Yes","No"]
[null,null,null,null,null,{"$f":"D103&E103","v":"ST-2257"},"4110-HCUSH",0,0,{"$f":"'    List by ST Number   '!G35","v":0},"Required when ordering a size six (4116)","A size 6 closer may be too strong & pull the door out of hold open","Yes","Yes"]
[null,null,9,"ST-",1496,{"$f":"D104&E104","v":"ST-3195"},"4110-CUSH",0,0,{"$f":"'    List by ST Number   '!G81","v":0},"Old style take apart arm","Available on all EDA and CUSH arms","No","No"]
[null,null,17,"ST-",1751,{"$f":"D105&E105","v":"ST-2392"},"4110-CUSH",101,115,{"$f":"'    List by ST Number   '!G39","v":110},"LCN logo removal from visible parts","ST applies to all closers except the Fire & Life Safety units","No","No"]
[null,null,29,"ST-",2257,"ST-2480","4110-CUSH",559,629,{"$f":"'    List by ST Number   '!G43","v":604},"Arched door applications with custom mounting plates","This ST is for both the door & frame plates (CUSH or EDA No S-CUSH)","Yes","Yes"]
[null,null,75,"ST-",3195,"ST-2480-A","4110-CUSH",327,369,{"$f":"'    List by ST Number   '!G44","v":354},"Arched door applications with custom mounting plate","This ST is for just the closer plate only (CUSH or EDA No S-CUSH)","Yes","Yes"]
[null,null,33,"ST-",2392,"ST-2480-B","4110-CUSH",247,278,{"$f":"'    List by ST Number   '!G45","v":267},"Arched door applications with custom mounting plates","This ST is for just the frame plate only (CUSH or EDA No S-CUSH)","Yes","Yes"]
[null,null,null,null,null,""]

{"sheet":"Operators","index":4,"n_rows":31,"n_cols":14,"rows_kept":31,"cut":false,"hidden":false,"merged":[[24,1,26,1],[28,1,30,1],[1,1,1,13],[6,1,8,1],[10,1,13,1],[15,1,18,1],[20,1,22,1]]}
[]
[null,"OPERATORS"]
[]
[null,null,null,null,null,null,null,"2022 List","2024 List","2023 List",null,null,"Template","Standard "]
[null,"Series",null,null,null,"ST-Number","Product","Up-Charge","Up-Charge","Up-Charge","      Application Type","        Description","Available","Product"]
[]
[null,4630,70,"ST-",3110,{"$f":"D7&E7","v":"ST-3110"},4630,24,28,{"$f":"'    List by ST Number   '!G77","v":26},"Pull side mounting with a GJ-100 or GJ-410 overhead stop","Uses a special angle bracket for the track mounting","Yes","No"]
[null,null,90,"ST-",3554,{"$f":"D8&E8","v":"ST-3554"},4630,0,0,{"$f":"'    List by ST Number   '!G95","v":0},"French Caution Automatic Door decal","Decal reads \" ATTENTION !   PORTE  AUTOMATIQUE \"","No","No"]
[null,null,33,"ST-",2392,"ST-2392",4630,101,115,{"$f":"'    List by ST Number   '!G39","v":110},"LCN logo removal from visible parts","ST applies to all closers except the Fire & Life Safety units","No","No"]
[null,null,null,null,null,""]
[null,4640,66,"ST-",3071,"ST-3071",4640,0,0,{"$f":"'    List by ST Number   '!G73","v":0},"For a 32\" wide door. Provides 120 degrees of opening","Must be able to overhang the frame face at the hinge side","Yes","Yes"]
[null,null,69,"ST-",3088,"ST-3088",4640,53,61,{"$f":"'    List by ST Number   '!G76","v":58},"Extra long rod and shoe for deep reveals","For reveals from 8\" to 11\" maximum","No","No"]
[null,null,90,"ST-",3554,"ST-3554",4640,0,0,{"$f":"'    List by ST Number   '!G95","v":0},"French Caution Automatic Door decal","Decal reads \" ATTENTION !   PORTE  AUTOMATIQUE \"","No","No"]
[null,null,33,"ST-",2392,"ST-2392",4640,101,115,{"$f":"'    List by ST Number   '!G39","v":110},"LCN logo removal from visible parts","ST applies to all closers except the Fire & Life Safety units","No","No"]
[null,null,null,null,null,""]
[null,9530,95,"ST-",3625,"ST-3625",9530,1197,1345,{"$f":"'    List by ST Number   '!G100","v":1293},"Powder coat finishes ( 6 standard finishes / no black)","Maximum length of header is 72\"","No","No"]
[null,null,96,"ST-",3642,"ST-3642",9530,25,29,{"$f":"'    List by ST Number   '!G101","v":27},"With longer track for emergency double acting door","Special long track supplied","Yes","No"]
[null,null,90,"ST-",3554,"ST-3554",9530,0,0,{"$f":"'    List by ST Number   '!G95","v":0},"French Caution Automatic Door decal","Decal reads \" ATTENTION !   PORTE  AUTOMATIQUE \"","No","No"]
[null,null,33,"ST-",2392,"ST-2392",9530,101,115,{"$f":"'    List by ST Number   '!G39","v":110},"LCN logo removal from visible parts","ST applies to all closers except the Fire & Life Safety units","No","No"]
[null,null,null,null,null,""]
[null,9540,95,"ST-",3625,"ST-3625",9540,1197,1345,{"$f":"'    List by ST Number   '!G100","v":1293},"Powder coat finishes ( 6 standard finishes / no black)","Maximum length of header is 72\"","No","No"]
[null,null,90,"ST-",3554,"ST-3554",9540,0,0,{"$f":"'    List by ST Number   '!G95","v":0},"French Caution Automatic Door decal","Decal reads \" ATTENTION !   PORTE  AUTOMATIQUE \"","No","No"]
[null,null,33,"ST-",2392,"ST-2392",9540,101,115,{"$f":"'    List by ST Number   '!G39","v":110},"LCN logo removal from visible parts","ST applies to all closers except the Fire & Life Safety units","No","No"]
[null,null,null,null,null,""]
[null,9550,95,"ST-",3625,"ST-3625",9550,1197,1345,{"$f":"'    List by ST Number   '!G100","v":1293},"Powder coat finishes ( 6 standard finishes / no black)","Maximum length of header is 72\"","No","No"]
[null,null,90,"ST-",3554,"ST-3554",9550,0,0,{"$f":"'    List by ST Number   '!G95","v":0},"French Caution Automatic Door decal","Decal reads \" ATTENTION !   PORTE  AUTOMATIQUE \"","No","No"]
[null,null,33,"ST-",2392,"ST-2392",9550,101,115,{"$f":"'    List by ST Number   '!G39","v":110},"LCN logo removal from visible parts","ST applies to all closers except the Fire & Life Safety units","No","No"]
[null,null,null,null,null,""]
[null,9560,95,"ST-",3625,"ST-3625",9560,1197,1345,{"$f":"'    List by ST Number   '!G100","v":1293},"Powder coat finishes ( 6 standard finishes / no black)","Maximum length of header is 72\"","No","No"]
[null,null,90,"ST-",3554,"ST-3554",9560,0,0,{"$f":"'    List by ST Number   '!G95","v":0},"French Caution Automatic Door decal","Decal reads \" ATTENTION !   PORTE  AUTOMATIQUE \"","No","No"]
[null,null,33,"ST-",2392,"ST-2392",9560,101,115,{"$f":"'    List by ST Number   '!G39","v":110},"LCN logo removal from visible parts","ST applies to all closers except the Fire & Life Safety units","No","No"]

{"sheet":"Concealed","index":5,"n_rows":29,"n_cols":14,"rows_kept":29,"cut":false,"hidden":false,"merged":[[6,1,8,1],[10,1,16,1],[18,1,22,1],[1,1,1,13],[24,1,27,1]]}
[]
[null,"CONCEALED CLOSERS"]
[]
[null,null,null,null,null,null,null,"2022 List","2024 List","2023 List",null,null,"Template","Standard "]
[null,"Series",null,"ST-","Number","ST-Number","Product","Up-charge","Up-Charge","Up-charge","      Application type","        Description","Available","Product"]
[]
[null,2010,1,"ST-","0561",{"$f":"D7&E7","v":"ST-0561"},2010,0,0,{"$f":"'    List by ST Number   '!G7","v":0},"Relocates closer in a hollow metal frame","This makes room for dry wall in a hollow metal frame","Yes","Yes"]
[null,null,25,"ST-",2210,{"$f":"D8&E8","v":"ST-2210"},2010,0,0,{"$f":"'    List by ST Number   '!G31","v":0},"For installation with a GJ surface overhead stop","Suitable for 2010 / 2210 / 2310ME closers","Yes","Yes"]
[null,null,33,"ST-",2392,"ST-2392",2010,101,115,{"$f":"'    List by ST Number   '!G39","v":110},"LCN logo removal from visible parts","ST applies to all closers except the Fire & Life Safety units","No","No"]
[null,null,null,null,null,""]
[null,2030,26,"ST-",2211,"ST-2211",2030,0,0,{"$f":"'    List by ST Number   '!G32","v":0},"Installation with a GJ90 Surface overhead stop","Indicates recommended reinforcement for GJ-90 Jamb bracket","Yes","Yes"]
[null,null,27,"ST-",2220,"ST-2220",2030,0,0,{"$f":"'    List by ST Number   '!G33","v":0},"Hollow Metal Frame installation","Indicates recommended mounting in Hollow Metal Frame","Yes","Yes"]
[null,null,30,"ST-",2266,"ST-2266",2030,0,0,{"$f":"'    List by ST Number   '!G36","v":0},"Wood frame installation ","Requires 417 wood clips as a separate item","Yes","Yes"]
[null,null,46,"ST-",2618,"ST-2618",2030,76,87,{"$f":"'    List by ST Number   '!G54","v":83},"Special (P-1162) arm","Suitable for Kawneer balanced door","No","No"]
[null,null,48,"ST-",2663,"ST-2663",2030,0,0,{"$f":"'    List by ST Number   '!G56","v":0},"Total Door installation","Template showing dimensions for Total Door installation","Yes","Yes"]
[null,null,77,"ST-",3231,"ST-3231",2030,114,129,{"$f":"'    List by ST Number   '!G83","v":124},"Special arm  special track and special roller","Popular for retrofit of closer on some door manufacturers doors","No","No"]
[null,null,33,"ST-",2392,"ST-2392",2030,101,115,{"$f":"'    List by ST Number   '!G39","v":110},"LCN logo removal from visible parts","ST applies to all closers except the Fire & Life Safety units","No","No"]
[null,null,null,null,null,""]
[null,3130,2,"ST-","0907","ST-0907",3130,0,0,{"$f":"'    List by ST Number   '!G8","v":0},"Offset pivot installation","See ST for a list of compatible pivots","Yes","Yes"]
[null,null,3,"ST-","0922","ST-0922",3130,0,0,{"$f":"'    List by ST Number   '!G9","v":0},"Center pivot installation","See ST for a list of compatible pivots","Yes","Yes"]
[null,null,4,"ST-",3478,{"$f":"D22&E22","v":"ST-2492"},3130,54,62,{"$f":"'    List by ST Number   '!G47","v":59},"4' wide door installation","Similar to a size 4 door closer","No","No"]
[null,null,39,"ST-",2492,{"$f":"D21&E21","v":"ST-3478"},3130,54,56,{"$f":"'    List by ST Number   '!G10","v":59},"Installation in the frame instead of in the door","Uses a special arm and mounting plate","Yes","No"]
[null,null,33,"ST-",2392,{"$f":"D23&E23","v":"ST-2392"},3130,101,115,{"$f":"'    List by ST Number   '!G39","v":110},"LCN logo removal from visible parts","ST applies to all closers except the Fire & Life Safety units","No","No"]
[null,null,null,null,null,""]
[null,5030,27,"ST-",2220,"ST-2220",5030,0,0,{"$f":"'    List by ST Number   '!G33","v":0},"Hollow Metal Frame installation","Indicates recommended mounting in Hollow Metal Frame","Yes","Yes"]
[null,null,51,"ST-",2714,"ST-2714",5030,134,151,{"$f":"'    List by ST Number   '!G59","v":145},"Custom closer faceplate notched for GJ-100 (Butts or OP)","For a 1 3/4\" door using GJ-104 to GJ-106 only Specify GJ-100 size","Yes","No"]
[null,null,52,"ST-",2715,{"$f":"D28&E28","v":"ST-3280"},5030,134,151,{"$f":"'    List by ST Number   '!G85","v":145},"Custom closer faceplate notched for GJ-100 ","For a 2 1/4\" door using GJ-104 to GJ-106. Specify GJ-100 size","Yes","No"]
[null,null,79,"ST-",3280,{"$f":"D29&E29","v":"ST-2392"},5030,101,115,{"$f":"'    List by ST Number   '!G39","v":110},"LCN logo removal from visible parts","ST applies to all closers except the Fire & Life Safety units","No","No"]
[null,null,33,"ST-",2392]

{"sheet":"Fire  Life Safety","index":6,"n_rows":22,"n_cols":14,"rows_kept":22,"cut":false,"hidden":false,"merged":[[8,1,15,1],[1,1,1,13],[17,1,20,1]]}
[]
[null,"FIRE & LIFE SAFETY CLOSERS"]
[]
[null,null,null,null,null,null,null,"2020 List","2024 List","2023 List",null,null,"Template","Standard "]
[null,"Series",null,null,null,"ST-Number","Product","Up-Charge","Up-Charge","Up-Charge","      Application Type","        Description","Available","Product"]
[]
[null,"2310ME",40,"ST-",2533,{"$f":"D7&E7","v":"ST-2533"},"2310ME",43,49,{"$f":"'    List by ST Number   '!G48","v":47},"With bumper and stop assembly ","Bumper and bumper stop is installed in track","No","No"]
[null,null,null,null,null,{"$f":"D8&E8","v":""}]
[null,"4040SE",57,"ST-",2806,"ST-2806","4040SE",0,0,{"$f":"'    List by ST Number   '!G64","v":0},"Pull side mounting with a GJ-100 or GJ-410 overhead stop","Requires a 4040XP-18G mounting plate as a separate item","Yes","Yes"]
[null,null,58,"ST-",2817,"ST-2817","4040SE",73,83,{"$f":"'    List by ST Number   '!G65","v":79},"Custom arm for installation on a 24\" wide door","This is the smallest door width possible for pull side","Yes","No"]
[null,null,80,"ST-",3312,"ST-3312","4040SE",41,47,{"$f":"'    List by ST Number   '!G86","v":45},"Substitute the 4040XP closer body with a 4040SE body","Can be used with any arm option","No","No"]
[null,null,null,null,null,""]
[null,null,74,"ST-",3184,"ST-3184","4040SE-DE",0,0,{"$f":"'    List by ST Number   '!G80","v":0},"Pull side mounting with a GJ-100 or GJ-410 overhead stop","Requires a 4040XP-18G mounting plate as a separate item","Yes","Yes"]
[null,null,null,null,null,""]
[null,null,61,"ST-",2966,"ST-2966","4040SEL",0,0,{"$f":"'    List by ST Number   '!G68","v":0},"Pull side mounting with swing clear hinges","Must be a SEL  will not work with SE","Yes","Yes"]
[null,null,81,"ST-",3351,"ST-3351","4040SEL",180,203,{"$f":"'    List by ST Number   '!G87","v":195},"Special DE arm for 4\" reveal Total Doors","Handing is required and the closer must have a SEL track","Yes","No"]
[null,null,null,null,null,""]
[null,"4310ME",15,"ST-",1712,"ST-1712","4310ME",0,0,{"$f":"'    List by ST Number   '!G21","v":0},"Installation with swing clear hinges","With Swing Clear Hinge","Yes","Yes"]
[null,null,24,"ST-",2018,"ST-2018","4310ME",23,26,{"$f":"'    List by ST Number   '!G30","v":25},"Pull side mounting with a GJ-100 or GJ-410 overhead stop","Uses a special angle bracket for the track mounting","Yes","No"]
[null,null,60,"ST-",2939,"ST-2939","4310ME",123,139,{"$f":"'    List by ST Number   '!G67","v":133},"Custom DE arm for 3 3/4\" reveal","This arm is for reveals from 2 3/4\" to 3 3/4\"","Yes","No"]
[null,null,71,"ST-",3173,{"$f":"D22&E22","v":"ST-3401"},"4310ME",16,19,{"$f":"'    List by ST Number   '!G88","v":18},"Replace swing free arm with a solid arm","Uses a 4010T arm","Yes","No"]
[null,null,82,"ST-",3401]

{"sheet":"High Security","index":7,"n_rows":14,"n_cols":14,"rows_kept":14,"cut":false,"hidden":false,"merged":[[6,1,7,1],[1,1,1,13]]}
[]
[null,"HIGH SECURITY CLOSERS"]
[]
[null,null,null,null,null,null,null,"2022 List","2024 List","2023 List",null,null,"Template","Standard "]
[null,"Series",null,null,null,"ST-Number","Product","Up-Charge","Up-Charge","Up-Charge","      Application Type","        Description","Available","Product"]
[]
[null,2210,25,"ST-",2210,{"$f":"D7&E7","v":"ST-2210"},2210,0,0,{"$f":"'    List by ST Number   '!G31","v":0},"For installation with a GJ surface overhead stop","Suitable for 2010 / 2210 / 2310ME closers","Yes","Yes"]
[null,null,33,"ST-",2392,{"$f":"D8&E8","v":"ST-2392"},2210,101,115,{"$f":"'    List by ST Number   '!G39","v":110},"LCN logo removal from visible parts","ST applies to all closers except the Fire & Life Safety units","No","No"]
[]
[null,"4510T","New","ST-",2643,{"$f":"D10&E10","v":"ST-2643"},"4510T",null,0,0,"Pull side mounting with a GJ-100 or GJ-410 overhead stop","Requires a 4020-18 mounting plate as a separate item","Yes","Yes"]
[]
[]
[]
[null,null,null,null,null,null,null,null,null,null," "]